bitfinex-derivatives/quotes_ETHF0:USTF0_20250125
["timestamp","ask_amount","ask_price","bid_price","bid_amount"]
[1737827998061,0.47805,3347.4,3347.0,6.06412866]
[1737827998263,0.48250187,3347.5,3347.1,0.47809]
[1737827998460,0.48250187,3347.5,3347.0,5.58602866]
[1737827998666,0.00446187,3347.5,3347.0,5.58602866]
[1737827998870,0.47807,3347.3,3347.0,5.58602866]
[1737827999366,3.2078,3347.4,3346.9,0.00448471]
[1737827999567,0.47811,3347.0,3346.9,0.00448471]
[1737828000768,0.9595,3347.1,3346.9,0.00448471]
[1737828000964,0.47809,3347.1,3346.9,0.00448471]
[1737828001170,0.96,3347.3,3346.9,0.00448471]
[1737828001370,0.47809,3347.1,3346.9,0.00448471]
[1737828001770,0.47811,3347.0,3346.9,0.00448471]
[1737828002572,0.4781,3347.1,3346.9,0.00448471]
[1737828002774,0.96,3347.3,3346.9,0.00448471]
[1737828003075,0.47809,3347.2,3346.9,0.00448471]
[1737828003271,0.4781,3347.1,3346.9,0.00448471]
[1737828003977,0.47811,3347.0,3346.9,0.00448471]
[1737828004274,0.4781,3347.1,3346.9,0.00448471]
[1737828005973,0.4887,3347.4,3346.9,0.00448471]
[1737828006179,0.47807,3347.3,3346.9,0.00448471]
[1737828006387,0.4887,3347.4,3346.9,0.00448471]
[1737828006876,0.4781,3347.1,3346.9,0.00448471]
[1737828007277,0.4887,3347.4,3346.9,0.00448471]
[1737828007677,0.47808,3347.2,3346.9,0.00448471]
[1737828008481,0.00446187,3347.5,3346.9,0.00448471]
[1737828008676,0.00446187,3347.5,3347.2,0.47807]
[1737828009178,0.00446187,3347.5,3347.3,0.47806]
[1737828009377,0.00446187,3347.5,3347.4,0.4977]
[1737828011379,0.00446187,3347.5,3346.9,0.50178471]
[1737828011582,0.00446187,3347.5,3347.0,0.5198]
[1737828011780,0.47805,3347.4,3347.0,0.9979]
[1737828012078,0.48250187,3347.5,3347.0,0.9979]
[1737828012479,0.47806,3347.4,3347.0,0.5198]
[1737828012784,0.47806,3347.4,3347.0,0.9979]
[1737828012977,0.00446187,3347.5,3347.0,0.9979]
[1737828013185,0.48250187,3347.5,3347.0,0.9979]
[1737828013376,0.47806,3347.4,3347.0,0.5198]
[1737828014687,0.47806,3347.4,3347.0,0.9979]
[1737828014885,0.48250187,3347.5,3347.1,0.47808]
[1737828015283,0.00446187,3347.5,3347.1,0.47808]
[1737828016080,0.48249187,3347.5,3347.1,0.47808]
[1737828017277,0.48250187,3347.5,3347.0,0.99789]
[1737828017477,0.48250187,3347.5,3347.1,0.47809]
[1737828018276,0.48250187,3347.5,3347.0,0.5198]
[1737828018585,0.48250187,3347.5,3347.0,0.9979]
[1737828018784,0.00446187,3347.5,3347.0,0.5198]
[1737828018986,0.47809,3347.2,3347.0,0.5198]
[1737828019289,0.47805,3347.4,3347.0,0.5198]
[1737828020084,0.47805,3347.4,3347.0,0.99791]
[1737828020284,0.00446187,3347.5,3347.1,0.47808]
[1737828020480,0.48250187,3347.5,3347.1,0.47808]
[1737828022487,0.00446187,3347.5,3347.1,0.47808]
[1737828023083,0.48249187,3347.5,3347.1,0.47808]
[1737828023283,0.48249187,3347.5,3347.0,0.9979]
[1737828024686,0.00446187,3347.5,3347.0,2.89802866]
[1737828025183,0.00446187,3347.5,3347.2,0.47808]
[1737828025383,0.00446187,3347.5,3347.0,2.89802866]
[1737828025589,0.00446187,3347.5,3347.1,0.47809]
[1737828025794,0.00446187,3347.5,3347.2,0.47807]
[1737828026288,0.00446187,3347.5,3347.3,0.47806]
[1737828026684,0.00446187,3347.5,3347.2,3.68587]
[1737828027191,0.00446187,3347.5,3347.2,3.2078]
[1737828027585,0.494,3348.1,3347.2,3.2078]
[1737828027586,3.2078,3348.2,3347.3,2.37822866]
[1737828027793,3.2078,3348.2,3347.7,3.2078]
[1737828027984,0.47795,3348.1,3347.8,0.4935]
[1737828028688,3.68575,3348.2,3347.8,0.4935]
[1737828029593,0.47795,3348.1,3347.8,0.4935]
[1737828029893,3.2078,3348.2,3347.8,0.4935]
[1737828030092,0.47795,3348.1,3347.8,0.4935]
[1737828031993,3.68574,3348.2,3347.8,0.4935]
[1737828032191,0.47795,3348.1,3347.8,0.4935]
[1737828034186,3.68575,3348.2,3347.8,0.4935]
[1737828034691,3.68575,3348.2,3347.8,0.97148]
[1737828034692,3.68573,3348.2,3347.8,0.97148]
[1737828034898,3.2078,3348.2,3347.8,0.97148]
[1737828035392,3.2078,3348.2,3347.8,0.4935]
[1737828035393,3.68574,3348.2,3347.8,0.4935]
[1737828035589,0.47794,3348.2,3347.8,0.97149]
[1737828035794,0.47793,3348.3,3347.8,0.97149]
[1737828037085,0.47793,3348.3,3347.8,0.97148]
[1737828037491,0.47793,3348.3,3347.8,1.46648]
[1737828038794,0.47794,3348.2,3347.8,1.46648]
[1737828038995,0.9973,3348.5,3347.7,3.2078]
[1737828039197,0.47794,3348.2,3347.8,0.98709]
[1737828039494,0.9973,3348.5,3347.8,0.5091]
[1737828039690,2.19206,3348.5,3347.7,3.2078]
[1737828040090,0.47797,3348.0,3347.7,3.2078]
[1737828041088,0.4743,3347.9,3347.7,3.2078]
[1737828041996,0.95228,3347.9,3347.7,3.2078]
[1737828042590,0.4743,3347.9,3347.7,3.2078]
[1737828042894,0.47799,3347.8,3347.7,3.2078]
[1737828043093,0.95629,3347.8,3347.7,3.2078]
[1737828043293,0.95629,3347.8,3347.1,3.2078]
[1737828043294,0.4783,3347.8,3347.1,3.2078]
[1737828043489,0.47808,3347.2,3347.1,3.2078]
[1737828043903,0.47801,3347.7,3347.1,3.2078]
[1737828044093,0.47807,3347.3,3347.1,3.2078]
[1737828045203,0.47808,3347.3,3347.1,3.2078]
[1737828045994,0.4943,3347.6,3347.1,3.2078]
[1737828046192,0.96038,3347.2,3347.1,3.2078]
[1737828047999,0.4823,3347.2,3347.1,3.2078]
[1737828048492,0.96038,3347.2,3347.1,3.2078]
[1737828048993,0.4823,3347.2,3347.1,3.2078]
[1737828049192,0.96038,3347.2,3347.1,3.2078]
[1737828049398,0.4823,3347.2,3347.1,3.2078]
[1737828049800,0.96038,3347.2,3347.1,3.2078]
[1737828050293,4.8811,3347.8,3347.1,3.2078]
[1737828050294,3.2078,3348.2,3347.1,3.2078]
[1737828050500,0.47798,3347.9,3347.6,0.47802]
[1737828050802,0.97806,3348.1,3347.7,0.4889]
[1737828050994,0.5001,3348.1,3347.7,0.4889]
[1737828051195,0.478,3347.8,3347.5,3.2078]
[1737828051400,0.4807,3347.7,3347.5,3.2078]
[1737828051991,0.4807,3347.7,3347.5,3.68583]
[1737828053702,0.4807,3347.7,3347.5,3.2078]
[1737828055898,0.5204,3347.6,3347.5,3.2078]
[1737828056099,0.47805,3347.4,3347.1,4.1883]
[1737828056299,0.47804,3347.5,3347.1,4.1883]
[1737828056503,0.47807,3347.3,3347.1,3.6967]
[1737828056802,0.5204,3347.6,3347.1,3.6967]
[1737828057302,0.47805,3347.4,3347.1,3.6967]
[1737828057606,0.5204,3347.6,3347.1,3.6967]
[1737828057898,0.47806,3347.4,3347.1,3.6967]
[1737828058304,0.5204,3347.6,3346.9,0.00448471]
[1737828058503,0.47811,3347.0,3346.9,0.00448471]
[1737828060603,4.6609,3347.4,3346.9,0.00448471]
[1737828060803,0.4781,3347.1,3346.9,0.00448471]
[1737828061006,4.1578,3347.4,3347.0,0.4781]
[1737828061309,4.1578,3347.4,3347.1,0.5057]
[1737828061811,4.1578,3347.4,3347.1,0.98379]
[1737828062001,0.47806,3347.4,3347.1,0.5057]
[1737828062305,0.47807,3347.3,3347.1,0.5057]
[1737828063708,0.5204,3347.6,3346.9,0.00448471]
[1737828064102,0.47807,3347.3,3346.9,0.00448471]
[1737828066010,0.75915655,3347.6,3346.9,0.00448471]
[1737828066213,0.47811,3347.0,3346.9,0.00448471]
[1737828071312,0.97241,3347.0,3346.9,0.00448471]
[1737828074611,0.4943,3347.0,3346.3,3.7289]
[1737828074809,0.47819,3346.4,3346.3,3.7289]
[1737828075514,0.47819,3346.4,3346.3,3.2078]
[1737828075714,2.14431,3346.9,3346.1,0.59265714]
[1737828075715,0.00448471,3346.7,3346.1,0.59265714]
[1737828076013,0.47822,3346.2,3346.1,0.59265714]
[1737828079912,0.5215,3346.5,3346.1,0.59265714]
[1737828079913,0.47821,3346.3,3346.1,0.59265714]
[1737828080616,0.5203,3346.6,3346.1,0.59265714]
[1737828080819,0.48264471,3346.7,3346.1,1.07415714]
[1737828081017,0.48264471,3346.7,3346.2,0.47822]
[1737828081314,0.48264471,3346.7,3346.3,0.5031]
[1737828081821,0.47816,3346.6,3346.3,0.5031]
[1737828082118,0.47818,3346.5,3346.3,0.5031]
[1737828082312,0.47821,3346.3,3346.1,1.07415714]
[1737828082820,0.5186,3346.4,3346.1,1.07415714]
[1737828083020,0.9968,3346.4,3346.1,1.07415714]
[1737828083215,0.5186,3346.4,3346.1,1.07415714]
[1737828083417,0.47821,3346.3,3346.1,1.07415714]
[1737828083613,0.5186,3346.4,3346.1,1.07415714]
[1737828084319,0.99679,3346.4,3346.1,1.07415714]
[1737828084814,0.5186,3346.4,3346.1,1.07415714]
[1737828085019,0.47818,3346.5,3346.1,1.55238714]
[1737828085418,0.47818,3346.5,3346.1,1.07415714]
[1737828086017,0.47818,3346.5,3346.1,1.55238714]
[1737828086317,0.52308471,3346.7,3346.2,0.47821]
[1737828086512,0.00448471,3346.7,3346.1,1.07415714]
[1737828086721,0.00448471,3346.7,3346.4,0.47818]
[1737828087426,0.00448471,3346.7,3346.2,0.47822]
[1737828087616,0.00448471,3346.7,3346.3,0.4782]
[1737828090018,0.47817,3346.6,3346.3,0.4782]
[1737828091522,0.00448471,3346.7,3346.1,1.07415714]
[1737828091828,0.47817,3346.6,3346.3,0.4782]
[1737828092225,0.47818,3346.5,3346.2,0.47821]
[1737828092417,0.5097,3346.6,3346.2,0.47821]
[1737828092723,0.47818,3346.5,3346.2,0.47821]
[1737828092925,0.5097,3346.6,3346.2,0.47821]
[1737828093224,0.47819,3346.4,3346.2,0.47821]
[1737828093819,0.5097,3346.6,3346.2,0.47821]
[1737828093820,0.47818,3346.5,3346.2,0.47821]
[1737828094830,0.47818,3346.5,3346.3,0.4782]
[1737828096615,0.5097,3346.6,3346.1,1.07415714]
[1737828096616,0.47821,3346.3,3346.1,1.07415714]
[1737828097431,0.4942,3346.5,3346.1,1.07415714]
[1737828097724,0.4782,3346.4,3346.1,1.07415714]
[1737828097920,0.4942,3346.5,3346.1,0.59265714]
[1737828098125,0.4782,3346.4,3346.1,0.59265714]
[1737828099019,0.97239,3346.5,3346.1,1.07088714]
[1737828099219,0.4942,3346.5,3346.1,0.59265714]
[1737828099420,0.4782,3346.4,3346.1,0.59265714]
[1737828099617,0.47822,3346.2,3346.1,0.59265714]
[1737828100422,0.47821,3346.3,3346.1,0.59265714]
[1737828101430,0.4782,3346.4,3346.1,0.59265714]
[1737828101629,0.47821,3346.3,3346.1,0.59265714]
[1737828102625,0.4942,3346.5,3346.1,0.59265714]
[1737828102829,0.4782,3346.4,3346.1,0.59265714]
[1737828103727,0.47821,3346.3,3346.1,0.59265714]
[1737828104028,0.97238,3346.5,3346.1,1.07088714]
[1737828104934,0.4942,3346.5,3346.1,0.59265714]
[1737828105132,0.47819,3346.4,3346.1,0.59265714]
[1737828105632,0.4942,3346.5,3346.1,0.59265714]
[1737828106135,0.47821,3346.3,3346.1,0.59265714]
[1737828106624,0.4942,3346.5,3346.1,0.59265714]
[1737828106833,0.47822,3346.2,3346.1,0.59265714]
[1737828117939,0.47821,3346.3,3346.1,0.59265714]
[1737828118135,0.47822,3346.2,3346.1,0.59265714]
[1737828121347,1.55091045,3346.2,3346.1,0.59265714]
[1737828125751,1.07269045,3346.2,3346.1,0.59265714]
[1737828125953,1.07269045,3346.2,3346.1,1.57505714]
[1737828126450,1.42721,3346.3,3346.1,1.57505714]
[1737828127055,0.47822,3346.2,3346.1,1.57505714]
[1737828134550,1.55091045,3346.2,3346.1,1.57505714]
[1737828142559,0.47823,3346.1,3344.8,3.68621]
[1737828142750,0.47835,3345.3,3345.2,0.4791]
[1737828143563,1.07269045,3345.3,3345.0,0.9693]
[1737828143766,0.47838,3345.1,3345.0,0.4876]
[1737828143961,1.55107045,3345.1,3345.0,0.4876]
[1737828145663,0.47838,3345.1,3345.0,0.4876]
[1737828145861,3.2078,3345.7,3345.0,0.4876]
[1737828146062,3.2078,3345.7,3345.2,0.47836]
[1737828146554,3.2078,3345.7,3345.3,0.4885]
[1737828146555,3.6861,3345.7,3345.3,0.4885]
[1737828147665,0.47831,3345.6,3345.3,0.4885]
[1737828149562,3.2078,3345.7,3345.3,0.4885]
[1737828150368,3.68609,3345.7,3345.3,0.4885]
[1737828151067,3.2078,3345.7,3345.3,0.4885]
[1737828151265,3.68609,3345.7,3345.3,0.4885]
[1737828151470,3.2078,3345.7,3345.3,0.4885]
[1737828151862,3.84611622,3346.1,3345.4,0.47832]
[1737828152065,0.5165,3346.0,3345.6,3.2078]
[1737828152266,0.5165,3346.3,3346.0,0.47824]
[1737828152458,0.5165,3346.3,3346.1,0.9657]
[1737828153172,0.47821,3346.3,3346.1,0.9657]
[1737828153372,0.4782,3346.4,3346.1,0.9657]
[1737828154764,0.97976,3346.6,3346.1,1.44393]
[1737828155761,0.97976,3346.6,3346.1,0.9657]
[1737828155964,0.97976,3346.6,3346.1,1.44393]
[1737828156570,0.97977,3346.6,3346.1,1.44393]
[1737828157069,0.5016,3346.6,3346.1,1.44393]
[1737828157271,0.97977,3346.6,3346.1,1.44393]
[1737828157477,3.21228471,3346.7,3346.1,0.9657]
[1737828157669,3.21228471,3346.7,3346.6,0.47816]
[1737828159777,3.2078,3347.5,3346.6,8.2078]
[1737828160078,0.47805,3347.4,3347.1,0.47808]
[1737828160480,3.2078,3347.5,3347.1,0.47808]
[1737828160674,3.68584,3347.5,3347.1,0.47808]
[1737828160978,3.2078,3347.5,3347.2,0.47808]
[1737828161277,3.68584,3347.5,3347.3,0.5098]
[1737828161575,3.68584,3347.5,3347.3,1.0044]
[1737828161778,3.2078,3347.5,3347.3,1.0044]
[1737828161972,0.00448471,3347.6,3347.3,1.0044]
[1737828162175,0.00448471,3347.6,3347.5,3.68583]
[1737828162772,0.00448471,3347.6,3347.5,8.68583]
[1737828162966,3.2078,3348.6,3347.5,11.6476]
[1737828163178,3.2078,3348.6,3348.3,0.47791]
[1737828163379,3.2078,3348.6,3348.4,0.9632]
[1737828163579,3.2078,3348.6,3348.4,0.4754]
[1737828163876,0.47793,3348.3,3348.0,3.2078]
[1737828164076,0.47794,3348.2,3347.7,0.9658]
[1737828164277,0.47794,3348.2,3347.8,0.47799]
[1737828164866,3.37351622,3348.5,3347.7,0.4878]
[1737828165274,0.47794,3348.2,3347.8,0.47798]
[1737828165579,0.47792,3348.4,3347.9,0.47798]
[1737828165770,0.47791,3348.4,3347.9,0.47798]
[1737828165972,0.47792,3348.3,3347.8,0.47799]
[1737828166279,0.47791,3348.4,3347.9,0.47798]
[1737828166879,0.47792,3348.3,3347.8,0.47799]
[1737828167178,3.86641622,3348.5,3347.6,0.9465]
[1737828167381,3.86641622,3348.5,3347.6,0.95341]
[1737828167677,0.47792,3348.4,3347.7,0.47801]
[1737828167879,4.34431622,3348.5,3348.0,0.47795]
[1737828168378,3.86641622,3348.5,3347.6,0.4754]
[1737828168876,3.86641622,3348.5,3347.9,3.2078]
[1737828169184,4.34431622,3348.5,3348.0,0.47796]
[1737828170379,1.4877,3348.5,3348.1,0.47794]
[1737828170682,1.4877,3348.5,3348.0,0.5161]
[1737828170877,1.4877,3348.5,3348.0,0.99406]
[1737828171381,1.9656,3348.5,3347.9,3.68577]
[1737828171581,0.47791,3348.4,3347.9,3.2078]
[1737828172581,3.86641622,3348.5,3347.9,3.2078]
[1737828172781,4.34431622,3348.5,3348.0,0.47796]
[1737828172982,3.86641622,3348.5,3348.0,0.47796]
[1737828173488,4.34431622,3348.5,3348.0,0.47796]
[1737828173776,1.4877,3348.5,3348.0,0.47796]
[1737828173976,2.979,3349.0,3348.7,0.47786]
[1737828174179,2.979,3349.0,3348.4,3.2078]
[1737828174180,0.5179,3348.9,3348.6,0.47787]
[1737828174574,0.5179,3348.9,3348.5,0.4763]
[1737828175082,0.5179,3348.9,3348.7,0.47786]
[1737828175481,0.5179,3348.9,3348.6,0.47787]
[1737828176589,0.5179,3348.9,3348.7,3.2078]
[1737828176782,0.99574,3348.9,3348.7,3.2078]
[1737828177085,0.5179,3348.9,3348.7,3.2078]
[1737828177285,0.5179,3348.9,3348.7,3.68565]
[1737828179389,0.5179,3348.9,3348.7,3.2078]
[1737828179588,0.5179,3348.9,3348.8,0.47785]
[1737828180287,0.478,3349.0,3348.9,0.47783]
[1737828180986,0.478,3349.0,3348.8,0.4906]
[1737828181287,0.47781,3349.1,3348.8,0.47784]
[1737828181489,0.47784,3348.9,3348.7,3.2078]
[1737828181790,0.47783,3349.0,3348.7,3.68565]
[1737828181993,0.4711,3348.8,3348.7,3.68566]
[1737828184989,0.9653,3349.2,3349.0,0.47781]
[1737828185189,0.5207,3349.1,3348.7,3.2078]
[1737828185389,0.99851,3349.1,3348.9,0.47783]
[1737828185692,0.5207,3349.1,3349.0,0.47782]
[1737828187587,3.2078,3349.5,3349.3,0.47777]
[1737828187790,3.2078,3349.5,3349.2,0.47778]
[1737828187990,3.2078,3349.5,3349.3,0.47777]
[1737828188393,3.2078,3349.5,3349.2,0.47779]
[1737828188598,3.2078,3349.5,3348.9,1.011]
[1737828188896,3.2078,3349.5,3349.3,0.47778]
[1737828189095,3.2078,3349.5,3349.4,0.47776]
[1737828189398,0.47778,3349.3,3348.8,0.47784]
[1737828189598,1.4613,3349.2,3348.7,3.68565]
[1737828189799,0.47781,3349.1,3348.7,3.2078]
[1737828190398,0.47781,3349.1,3348.7,3.68566]
[1737828190796,0.47783,3349.0,3348.7,3.2078]
[1737828190995,0.47783,3349.0,3348.7,3.68566]
[1737828191196,0.47783,3349.0,3348.7,3.2078]
[1737828191597,1.44479,3349.2,3348.9,0.47782]
[1737828191796,1.44481,3349.2,3348.8,0.5056]
[1737828191996,1.44481,3349.2,3348.8,1.0064]
[1737828192188,0.47781,3349.1,3348.8,1.0064]
[1737828192392,0.967,3349.2,3348.7,3.68565]
[1737828192701,0.98672,3349.1,3348.7,3.68565]
[1737828193397,0.5089,3349.1,3348.8,3.2078]
[1737828193599,0.47783,3349.0,3348.8,3.2078]
[1737828194303,0.5089,3349.1,3348.8,3.2078]
[1737828194494,0.98671,3349.1,3348.8,3.2078]
[1737828194694,0.47783,3349.0,3348.8,3.2078]
[1737828195300,0.98671,3349.1,3348.8,3.2078]
[1737828195694,0.47782,3349.0,3348.8,3.2078]
[1737828196198,0.47782,3349.0,3348.7,0.47786]
[1737828196398,0.967,3349.2,3348.8,3.68564]
[1737828196592,0.967,3349.2,3349.1,0.47781]
[1737828198200,0.967,3349.2,3348.9,0.983]
[1737828198601,0.967,3349.2,3349.1,0.47781]
[1737828198805,3.68555,3349.5,3349.2,0.47779]
[1737828198999,1.0111,3349.4,3349.2,0.47779]
[1737828199204,1.0111,3349.4,3348.9,0.983]
[1737828199406,1.0111,3349.4,3349.2,0.47778]
[1737828199604,1.0111,3349.4,3349.3,0.47778]
[1737828200206,1.0111,3349.4,3348.9,0.983]
[1737828200404,1.48887,3349.4,3349.0,0.47782]
[1737828202708,1.0111,3349.4,3348.9,0.4732]
[1737828202906,0.47781,3349.1,3348.8,3.2078]
[1737828203406,0.47781,3349.1,3348.8,3.68565]
[1737828203607,0.47781,3349.1,3348.8,3.2078]
[1737828203807,1.0111,3349.4,3349.0,3.2078]
[1737828204005,0.47781,3349.1,3349.0,3.2078]
[1737828205406,0.47786,3348.7,3348.6,0.00448471]
[1737828209613,0.47786,3348.7,3348.6,0.48236471]
[1737828209906,0.47786,3348.7,3348.6,0.00448471]
[1737828210810,0.512,3348.8,3348.7,0.47786]
[1737828211201,0.98985,3348.8,3348.7,0.47786]
[1737828211812,0.512,3348.8,3348.7,0.47786]
[1737828212311,0.4726,3348.9,3348.8,0.47785]
[1737828213713,0.001742,3349.1,3348.7,3.2078]
[1737828213912,0.001742,3349.1,3349.0,0.47782]
[1737828229723,0.001742,3349.1,3348.8,3.40531622]
[1737828229724,0.001742,3349.1,3348.9,0.47783]
[1737828230213,0.001742,3349.1,3348.8,3.88315622]
[1737828230410,0.001742,3349.1,3348.9,0.47783]
[1737828231016,0.479552,3349.1,3348.8,3.88315622]
[1737828232326,0.479552,3349.1,3348.8,3.37655622]
[1737828232719,0.001742,3349.1,3348.9,0.47782]
[1737828233525,0.479552,3349.1,3348.9,0.47782]
[1737828234225,0.479552,3349.1,3348.8,2.89871622]
[1737828234426,0.479552,3349.1,3348.9,0.47783]
[1737828235913,0.479552,3349.1,3348.8,3.37655622]
[1737828236121,0.47782,3349.0,3348.8,2.85655622]
[1737828236319,0.5214,3349.0,3348.9,0.47783]
[1737828236622,0.001742,3349.1,3348.9,0.47783]
[1737828237626,0.001742,3349.1,3348.8,2.37871622]
[1737828237826,0.001742,3349.1,3349.0,0.47782]
[1737828240630,0.001742,3349.1,3348.8,2.37871622]
[1737828240833,0.479552,3349.1,3348.9,0.47783]
[1737828241735,0.47782,3349.0,3348.8,2.85655622]
[1737828242532,0.001742,3349.1,3348.8,2.37871622]
[1737828242737,0.001742,3349.1,3348.9,0.47783]
[1737828243132,0.001742,3349.1,3348.8,2.37871622]
[1737828243330,0.479552,3349.1,3348.9,0.47783]
[1737828243733,0.479552,3349.1,3348.8,2.85655622]
[1737828244438,0.47782,3349.0,3348.7,3.2078]
[1737828244634,0.47784,3348.9,3348.7,3.2078]
[1737828244836,0.4755,3348.8,3348.7,3.2078]
[1737828246041,0.4755,3348.8,3348.7,3.68566]
[1737828246236,0.4755,3348.8,3348.7,3.2078]
[1737828246937,0.4755,3348.8,3348.7,3.68566]
[1737828249042,0.4755,3348.8,3348.7,3.2078]
[1737828249540,0.479552,3349.1,3348.8,0.47785]
[1737828249843,0.479552,3349.1,3348.9,2.37871622]
[1737828252338,0.001742,3349.1,3348.9,2.37871622]
[1737828252842,0.479552,3349.1,3348.9,2.37871622]
[1737828253939,0.001742,3349.1,3348.9,2.37871622]
[1737828254135,0.521242,3349.1,3348.9,2.37871622]
[1737828254341,0.999052,3349.1,3348.9,2.37871622]
[1737828255238,0.521242,3349.1,3348.9,2.37871622]
[1737828255543,0.521242,3349.1,3348.9,2.85653622]
[1737828255742,0.521242,3349.1,3349.0,0.5033]
[1737828255937,0.521242,3349.1,3349.0,0.98112]
[1737828256941,0.521242,3349.1,3349.0,0.5033]
[1737828259046,0.999052,3349.1,3349.0,0.5033]
[1737828259247,0.999052,3349.1,3348.9,2.37871622]
[1737828259248,0.47782,3349.0,3348.9,2.37871622]
[1737828261452,0.999052,3349.1,3348.9,2.37871622]
[1737828261645,0.521242,3349.1,3349.0,1.07109106]
[1737828261848,0.999052,3349.1,3349.0,1.07109106]
[1737828262850,3.729042,3349.1,3348.6,0.00448471]
[1737828263052,0.47786,3348.7,3348.6,0.00448471]
[1737828264253,0.47793,3348.2,3348.1,2.37407312]
[1737828264854,0.4728,3348.6,3348.1,2.37407312]
[1737828265055,0.47789,3348.5,3348.4,2.37407312]
[1737828265249,0.4728,3348.6,3348.0,2.84617312]
[1737828265553,0.47795,3348.1,3348.0,2.37407312]
[1737828265758,0.47795,3348.1,3348.0,2.37855783]
[1737828266952,0.47794,3348.2,3348.0,2.37855783]
[1737828268756,0.5159,3348.4,3348.0,2.37855783]
[1737828268946,0.47794,3348.2,3348.0,2.37855783]
[1737828270258,0.5159,3348.4,3348.0,2.37855783]
[1737828270453,0.47793,3348.3,3348.0,2.37855783]
[1737828270758,0.47792,3348.3,3348.0,2.37855783]
[1737828271152,0.47794,3348.2,3348.0,2.37855783]
[1737828272860,0.5159,3348.4,3348.0,2.37855783]
[1737828273158,0.47792,3348.3,3348.0,2.37855783]
[1737828273459,0.5159,3348.4,3348.0,2.37855783]
[1737828273660,0.47794,3348.2,3348.0,2.37855783]
[1737828275057,0.47793,3348.3,3348.0,2.37855783]
[1737828275255,0.47793,3348.2,3348.0,2.37855783]
[1737828275955,0.47793,3348.3,3348.0,2.37855783]
[1737828276155,0.47794,3348.2,3348.0,2.37855783]
[1737828276657,0.5159,3348.4,3348.0,2.37855783]
[1737828276960,0.47793,3348.3,3348.0,2.37855783]
[1737828277570,1.0134,3348.4,3348.0,2.37855783]
[1737828278060,0.47795,3348.2,3348.0,2.37855783]
[1737828278458,0.49135,3348.4,3348.0,0.00448471]
[1737828278658,0.47793,3348.3,3348.0,0.00448471]
[1737828281065,0.96926,3348.4,3348.0,2.37855783]
[1737828281964,0.96926,3348.4,3348.0,2.85651783]
[1737828282263,0.96926,3348.4,3348.0,2.37855783]
[1737828283764,0.96926,3348.4,3348.3,1.07169635]
[1737828286271,0.97071165,3348.4,3348.3,1.07169635]
[1737828286665,0.97071165,3348.4,3348.0,0.00448471]
[1737828286666,0.47795,3348.1,3348.0,0.00448471]
[1737828286861,1.19492,3348.0,3347.4,0.481]
[1737828287065,0.47805,3347.4,3347.3,1.07169635]
[1737828290171,0.47804,3347.5,3347.3,1.07169635]
[1737828290370,0.47804,3347.5,3347.4,1.07169635]
[1737828294876,0.47803,3347.5,3347.4,1.07169635]
[1737828298081,0.947,3347.9,3347.4,1.07169635]
[1737828298285,0.47799,3347.8,3347.7,1.07169635]
[1737828301181,0.47802,3347.6,3347.5,2.09449635]
[1737828301387,0.47808,3347.2,3347.1,2.56552683]
[1737828301586,0.47808,3347.2,3347.1,1.49383048]
[1737828302185,0.47808,3347.2,3347.1,2.56552683]
[1737828303787,1.0036,3347.5,3347.1,1.49383048]
[1737828304079,1.0036,3347.5,3347.3,2.37616094]
[1737828304890,0.5025,3347.5,3347.3,2.37616094]
[1737828305190,2.979,3347.6,3347.3,2.37616094]
[1737828305394,3.45702,3347.6,3347.3,2.37616094]
[1737828305890,0.47802,3347.6,3347.3,2.37616094]
[1737828306788,0.47804,3347.5,3347.3,2.37616094]
[1737828307089,0.47805,3347.4,3347.3,2.37616094]
[1737828307391,0.5127,3347.6,3347.2,0.9978]
[1737828307590,0.47806,3347.4,3347.2,0.9978]
[1737828308385,0.4887,3347.5,3347.1,2.00133048]
[1737828308386,0.4887,3347.5,3347.1,1.49383048]
[1737828308591,0.47808,3347.2,3347.1,1.49383048]
[1737828310185,1.42508,3347.2,3347.1,1.49383048]
[1737828310683,0.47808,3347.2,3347.1,1.49383048]
[1737828310881,1.42508,3347.2,3347.1,1.49383048]
[1737828311891,4.40408,3347.2,3347.1,1.49383048]
[1737828313789,3.45708,3347.2,3347.1,1.49383048]
[1737828314001,1.19505,3347.7,3347.1,1.49383048]
[1737828314002,2.951,3348.6,3348.3,0.47792]
[1737828314184,14.948,3351.3,3348.3,0.47792]
[1737828314185,0.4777,3349.9,3348.9,0.47783]
[1737828314384,1.19367,3351.5,3349.8,3.2078]
[1737828314692,1.19367,3351.5,3349.5,4.75232188]
[1737828314693,3.92775955,3351.8,3351.0,5.58396094]
[1737828314893,0.48553584,3351.9,3351.0,5.58396094]
[1737828315098,0.71328535,3351.1,3351.0,5.58396094]
[1737828315993,0.00446196,3351.8,3351.0,5.58396094]
[1737828316194,0.00446196,3351.8,3351.2,2.37616094]
[1737828316389,0.00446196,3351.8,3351.6,3.2078]
[1737828316886,0.71328535,3351.7,3351.6,3.2078]
[1737828317486,0.71328535,3351.7,3351.0,0.47753]
[1737828317487,0.47749,3351.4,3351.0,2.49451465]
[1737828317693,0.47752,3351.2,3350.7,0.00447788]
[1737828317886,0.47749,3351.4,3350.7,0.00447788]
[1737828318090,1.49449,3351.3,3350.7,0.00447788]
[1737828318490,0.47751,3351.2,3350.7,0.00447788]
[1737828318800,1.017,3351.3,3350.7,0.00447788]
[1737828318998,0.47754,3351.0,3350.7,0.00447788]
[1737828319197,0.4863,3350.9,3350.7,0.00447788]
[1737828319397,0.4863,3350.9,3350.0,3.2078]
[1737828319398,0.47759,3350.6,3350.0,3.2078]
[1737828319701,2.951,3350.8,3350.0,3.2078]
[1737828319901,0.47758,3350.7,3350.0,3.2078]
[1737828320101,3.42857,3350.8,3350.0,3.2078]
[1737828320297,2.951,3350.8,3350.0,5.58396094]